bitfinex-derivatives/quotes_SOLF0:USTF0_20260305
["timestamp","ask_amount","ask_price","bid_price","bid_amount"]
[1772718665027,9.875,91.119,91.071,3.64176376]
[1772718665230,4.23922043,91.12,91.071,3.64176376]
[1772718666037,3.59349277,91.129,91.08,4.23922043]
[1772718666239,3.59349277,91.139,91.081,3.64176376]
[1772718666539,3.59349277,91.139,91.092,9.878]
[1772718667540,3.59349277,91.139,91.093,3.64176376]
[1772718667842,9.872,91.147,91.1,4.23922043]
[1772718668235,3.59349277,91.139,91.084,9.879]
[1772718668438,3.59349277,91.119,91.061,3.64176376]
[1772718668639,3.59349277,91.119,91.07,4.23922043]
[1772718668833,4.23922043,91.13,91.08,7.88098419]
[1772718669331,293.12402932,91.165,91.08,7.88098419]
[1772718669332,4.23922043,91.12,91.08,3.64176376]
[1772718670131,4.23922043,91.12,91.07,4.23922043]
[1772718670343,4.23922043,91.11,91.067,9.881]
[1772718670541,4.23922043,91.11,91.065,3.64176376]
[1772718670741,7.8327132,91.12,91.065,3.64176376]
[1772718671143,7.8327132,91.12,91.071,13.52176376]
[1772718671838,293.12402932,91.165,91.036,19.769]
[1772718671839,3.59349277,91.142,91.086,9.879]
[1772718672045,4.23922043,91.14,91.087,3.64176376]
[1772718672441,3.59349277,91.129,91.072,3.64176376]
[1772718673044,3.59349277,91.129,91.08,9.879]
[1772718673447,4.23922043,91.11,91.036,10.99]
[1772718673642,4.23922043,91.11,91.063,3.64176376]
[1772718674342,3.59349277,91.119,91.063,3.64176376]
[1772718674748,9.874,91.128,91.071,3.64176376]
[1772718675250,9.874,91.128,91.073,3.64176376]
[1772718675449,9.874,91.128,91.08,7.88098419]
[1772718675644,9.874,91.128,91.036,10.99]
[1772718675645,7.8327132,91.12,91.07,4.23922043]
[1772718675850,3.59349277,91.119,91.065,3.64176376]
[1772718677545,4.23922043,91.11,91.065,3.64176376]
[1772718677744,4.23922043,91.11,91.035,421.3996628]
[1772718677745,3.59349277,91.099,91.046,3.64176376]
[1772718678348,3.59349277,91.099,91.05,4.23922043]
[1772718678748,3.59349277,91.099,91.05,7.88098419]
[1772718679153,3.59349277,91.099,91.05,4.23922043]
[1772718679452,4.23922043,91.11,91.051,3.78965456]
[1772718679850,4.23922043,91.11,91.058,3.78965456]
[1772718680254,4.23922043,91.09,91.041,13.67365456]
[1772718680446,3.64327508,91.099,91.041,13.67365456]
[1772718680646,4.23922043,91.09,91.041,13.67365456]
[1772718681450,4.23922043,91.09,91.041,3.78965456]
[1772718682253,4.23922043,91.06,91.003,3.78965456]
[1772718682456,4.23922043,91.06,91.011,3.78965456]
[1772718683348,4.23922043,91.07,91.02,4.23922043]
[1772718683553,4.23922043,91.07,91.02,8.02887499]
[1772718684257,9.881,91.069,91.02,3.78965456]
[1772718684554,4.23922043,91.07,91.02,3.78965456]
[1772718685655,8.34620233,91.118,91.01,4.23922043]
[1772718685656,3.64327508,91.059,91.01,4.23922043]
[1772718685848,3.64327508,91.059,91.003,3.78965456]
[1772718686249,3.64327508,91.059,91.008,3.94646408]
[1772718686446,4.23922043,91.07,91.011,3.94646408]
[1772718687451,4.23922043,91.07,91.012,3.94646408]
[1772718689051,4.23922043,91.06,91.012,3.94646408]
[1772718689661,4.23922043,91.06,91.016,3.94646408]
[1772718689956,4.23922043,91.08,91.021,3.94646408]
[1772718690157,3.64054478,91.104,91.041,3.94646408]
[1772718690355,4.23922043,91.09,91.041,3.94646408]
[1772718690557,7.87976521,91.12,91.061,3.94646408]
[1772718690859,3.64054478,91.099,91.05,4.23922043]
[1772718691063,3.64054478,91.109,91.06,4.23922043]
[1772718691260,3.64054478,91.109,91.051,3.94646408]
[1772718691459,3.64054478,91.109,91.053,9.882]
[1772718691663,3.64054478,91.109,91.054,3.94646408]
[1772718692262,3.64054478,91.109,91.055,9.882]
[1772718692961,3.64054478,91.109,91.059,13.82846408]
[1772718693167,3.64054478,91.109,91.06,3.94646408]
[1772718693758,3.64054478,91.109,91.061,3.94646408]
[1772718694361,3.64054478,91.109,91.07,4.23922043]
[1772718694555,4.23922043,91.12,91.07,4.23922043]
[1772718696458,3.64054478,91.139,91.081,3.94646408]
[1772718696654,3.64054478,91.139,91.09,4.23922043]
[1772718697054,3.64054478,91.139,91.091,3.94646408]
[1772718698064,15.62728913,91.143,91.091,3.94646408]
[1772718698269,15.62728913,91.143,91.101,3.94646408]
[1772718699362,15.62728913,91.143,91.056,19.765]
[1772718699363,15.62728913,91.143,91.11,4.23922043]
[1772718699662,15.62728913,91.143,91.111,3.94646408]
[1772718699864,3.64054478,91.17,91.12,4.23922043]
[1772718700160,8.90459309,91.169,91.12,4.23922043]
[1772718700366,8.90459309,91.169,91.11,4.23922043]
[1772718700560,8.90459309,91.169,91.12,4.23922043]
[1772718700759,8.90459309,91.167,91.12,4.23922043]
[1772718702667,8.90459309,91.167,91.13,4.23922043]
[1772718702864,8.90459309,91.167,91.12,4.23922043]
[1772718703065,8.91394626,91.159,91.07,62.0]
[1772718703368,8.91394626,91.159,91.1,4.23922043]
[1772718703566,8.91394626,91.159,91.11,4.23922043]
[1772718704060,8.91394626,91.159,91.063,19.763]
[1772718704061,8.91394626,91.159,91.12,4.23922043]
[1772718705568,8.91394626,91.159,91.111,9.876]
[1772718705764,8.91394626,91.159,91.11,4.23922043]
[1772718706368,8.90604173,91.139,91.09,4.23922043]
[1772718706665,8.90604173,91.139,91.08,4.23922043]
[1772718707462,8.83762991,91.137,91.08,4.23922043]
[1772718707760,4.23922043,91.13,91.08,4.23922043]
[1772718707961,8.83762991,91.129,91.08,4.23922043]
[1772718708256,8.83762991,91.129,91.07,4.23922043]
[1772718708869,4.23922043,91.12,91.07,4.23922043]
[1772718709070,8.84631382,91.127,91.07,4.23922043]
[1772718709566,8.84631382,91.119,91.07,4.23922043]
[1772718709869,8.84682322,91.109,91.05,4.23922043]
[1772718710568,8.84682322,91.109,91.06,4.23922043]
[1772718710962,13.09926786,91.12,91.07,4.23922043]
[1772718711162,8.86004743,91.119,91.06,4.23922043]
[1772718711366,8.86004743,91.119,91.034,429.9109577]
[1772718711367,8.86004743,91.109,91.05,4.23922043]
[1772718711664,8.86004743,91.109,91.061,9.881]
[1772718711866,8.86004743,91.109,91.06,4.23922043]
[1772718712466,4.23922043,91.12,91.07,4.23922043]
[1772718712665,8.86004743,91.124,91.07,4.23922043]
[1772718713067,8.86004743,91.124,91.034,429.9109577]
[1772718713068,8.8540452,91.149,91.09,4.23922043]
[1772718713260,8.8540452,91.129,91.08,4.23922043]
[1772718713664,8.8540452,91.129,91.07,4.23922043]
[1772718713869,8.8540452,91.109,91.05,4.23922043]
[1772718714870,8.8540452,91.109,91.055,9.882]
[1772718715071,8.8540452,91.109,91.06,4.23922043]
[1772718715373,8.8540452,91.109,91.07,4.23922043]
[1772718715566,8.8540452,91.109,91.034,429.9109577]
[1772718715567,8.8540452,91.109,91.06,4.23922043]
[1772718715769,8.8540452,91.109,91.05,4.23922043]
[1772718716365,8.8540452,91.109,91.052,9.882]
[1772718716567,8.8540452,91.109,91.06,4.23922043]
[1772718718571,8.8540452,91.109,91.05,4.23922043]
[1772718719168,8.84315396,91.107,91.052,9.882]
[1772718721068,8.85624917,91.099,91.04,4.23922043]
[1772718721271,8.85624917,91.089,91.04,4.23922043]
[1772718721776,8.85624917,91.079,91.034,429.9109577]
[1772718722172,8.85624917,91.079,91.035,9.884]
[1772718722380,8.85624917,91.079,91.04,4.23922043]
[1772718722577,8.85624917,91.119,91.034,429.9109577]
[1772718723170,8.85154771,91.116,91.057,9.882]
[1772718723475,8.85154771,91.116,91.034,429.9109577]
[1772718724173,8.85154771,91.113,91.049,9.883]
[1772718724780,8.84760369,91.109,91.055,9.882]
[1772718727477,8.84745322,91.105,91.055,9.882]
[1772718728682,8.86883801,91.102,91.047,9.883]
[1772718729282,8.86883801,91.102,91.034,429.9109577]
[1772718730383,8.86883801,91.102,91.06,9.882]
[1772718730584,8.86883801,91.102,91.034,429.9109577]
[1772718731386,8.86654133,91.1,91.044,9.883]
[1772718733989,8.86624064,91.097,91.044,9.883]
[1772718735289,8.86624064,91.097,91.034,429.9109577]
[1772718735791,8.86624064,91.097,91.064,9.881]
[1772718735989,8.86643431,91.121,91.064,9.881]
[1772718736486,9.08922877,91.14,91.064,9.881]
[1772718736487,8.86643431,91.118,91.064,9.881]
[1772718738491,8.86643431,91.118,91.034,429.9109577]
[1772718739091,8.86643431,91.118,91.074,9.88]
[1772718741298,8.86643431,91.118,91.08,9.879]
[1772718741490,8.86221867,91.139,91.07,9.08922877]
[1772718741895,8.86221867,91.139,91.087,9.879]
[1772718742092,8.86221867,91.139,91.034,429.9109577]
[1772718742492,8.86221867,91.133,91.068,9.881]
[1772718743097,8.86474797,91.13,91.076,9.88]
[1772718744598,8.86474797,91.119,91.076,9.88]
[1772718745396,8.86822571,91.109,91.05,4.23956373]
[1772718745906,8.86822571,91.099,91.052,9.882]
[1772718746704,8.87444399,91.089,91.052,9.882]
[1772718747509,8.87444399,91.089,91.06,9.882]
[1772718748103,8.87444399,91.089,91.04,4.23956373]
[1772718749002,8.86327186,91.099,91.05,4.23956373]
[1772718750508,8.86327186,91.099,91.045,9.883]
[1772718753311,8.86327186,91.099,91.05,4.23956373]
[1772718753810,8.85724185,91.097,91.05,4.23956373]
[1772718754712,8.85724185,91.094,91.04,4.23956373]
[1772718756313,8.85724185,91.094,91.041,9.884]
[1772718757513,8.85724185,91.094,91.05,4.23956373]
[1772718758007,8.85724185,91.094,91.041,9.884]
[1772718758409,4.23956373,91.09,91.034,439.7949577]
[1772718758606,8.84986404,91.089,91.04,4.23956373]
[1772718759514,8.84986404,91.089,91.041,9.884]
[1772718760410,8.84986404,91.089,91.047,9.883]
[1772718760917,8.84986404,91.089,91.05,4.23956373]
[1772718761120,8.84986404,91.089,91.051,9.883]
[1772718763620,8.84986404,91.089,91.05,4.23956373]
[1772718766218,8.84986404,91.089,91.052,9.882]
[1772718767919,8.84986404,91.089,91.05,4.23956373]
[1772718769922,8.84986404,91.089,91.035,9.884]
[1772718770125,8.84986404,91.089,91.04,4.23956373]
[1772718773424,8.84986404,91.089,91.05,4.23956373]
[1772718774321,8.84986404,91.089,91.04,4.23956373]
[1772718774518,8.84986404,91.089,91.042,9.884]
[1772718775922,8.84986404,91.089,91.04,4.23956373]
[1772718777022,8.84986404,91.089,91.05,4.23956373]
[1772718778417,8.84986404,91.089,91.047,9.883]
[1772718780525,8.84986404,91.089,91.053,9.882]
[1772718780726,8.92137848,91.102,91.053,9.882]
[1772718781325,8.92137848,91.102,91.05,4.23956373]
[1772718781527,8.91857839,91.099,91.04,4.23956373]
[1772718782028,8.91857839,91.087,91.04,4.23956373]
[1772718782230,8.91857839,91.087,91.034,429.9109577]
[1772718782429,8.91857839,91.087,91.04,4.23956373]
[1772718782631,8.91857839,91.087,91.04,4.24198823]
[1772718783429,8.91857839,91.087,91.045,9.883]
[1772718784227,8.91857839,91.087,91.04,4.24198823]
[1772718784428,8.91995112,91.079,91.02,4.24198823]
[1772718784732,8.91995112,91.069,91.01,4.24198823]
[1772718785234,8.91995112,91.069,91.016,9.886]
[1772718785427,8.91995112,91.069,91.01,4.24198823]
[1772718786026,8.91829162,91.065,91.012,9.887]
[1772718786329,8.91829162,91.059,91.0,4.24198823]
[1772718786630,8.91829162,91.049,91.0,4.24198823]
[1772718787526,8.914839,91.069,91.01,4.24198823]
[1772718787731,8.914839,91.069,91.02,4.24198823]
[1772718788731,8.914839,91.069,91.03,4.24198823]
[1772718789028,8.91224567,91.089,91.04,4.24198823]
[1772718789934,8.91224567,91.089,91.042,9.884]
[1772718790435,8.91224567,91.089,91.05,4.24198823]
[1772718790934,8.91224567,91.089,91.04,4.24198823]
[1772718791230,8.90184087,91.079,91.03,4.24198823]
[1772718791435,8.90184087,91.059,91.01,4.24198823]
[1772718791633,8.90184087,91.059,90.962,27.0832253]
[1772718791831,8.90184087,91.059,91.0,4.24198823]
[1772718792136,8.90184087,91.059,91.01,14.12898823]
[1772718795337,8.90184087,91.059,91.02,4.24198823]
[1772718798437,8.90184087,91.059,91.028,9.885]
[1772718800237,8.90184087,91.059,91.032,9.885]
[1772718802344,8.90184087,91.059,90.964,265.69994173]
[1772718802345,8.90184087,91.059,91.01,4.24198823]
[1772718803440,8.90184087,91.059,91.016,9.886]
[1772718806237,8.90184087,91.059,91.01,4.24198823]
[1772718807042,9.882,91.058,91.01,4.24198823]
[1772718807248,8.92885277,91.057,91.009,9.887]
[1772718808448,4.24198823,91.06,91.009,9.887]
[1772718808449,8.92885277,91.054,91.009,9.887]
[1772718808849,8.92885277,91.054,91.01,4.24198823]
[1772718810450,8.92885277,91.054,91.002,437.32967075]
[1772718810653,8.92885277,91.054,91.002,9.888]
[1772718812148,8.96288543,91.049,90.995,9.889]
[1772718813055,8.96288543,91.049,91.0,4.24198823]
[1772718813659,8.96288543,91.049,90.99,4.24198823]
[1772718815356,8.94088864,91.047,90.997,9.888]
[1772718816460,4.24198823,91.05,91.0,4.24198823]
[1772718816461,8.94088864,91.045,91.0,4.24198823]
[1772718816662,4.24198823,91.04,90.99,14.13098823]
[1772718816855,8.95481869,91.039,90.99,14.13098823]
[1772718817055,8.95481869,91.039,90.996,9.889]
[1772718817652,8.95481869,91.039,90.99,4.24198823]
[1772718817859,8.95481869,91.039,91.003,9.888]
[1772718818158,8.95481869,91.039,90.99,4.24198823]
[1772718818659,8.95481869,91.039,90.996,9.889]
[1772718818961,8.95481869,91.039,90.99,4.24198823]
[1772718819759,8.95481869,91.039,90.998,9.888]
[1772718821663,8.93816462,91.054,91.02,4.24198823]
[1772718823061,8.93816462,91.054,91.012,9.887]
[1772718828267,8.93816462,91.054,91.018,9.886]
[1772718832570,8.90846933,91.049,91.007,9.887]
[1772718832771,8.92338677,91.039,90.971,19.783]
[1772718832968,8.92338677,91.038,90.991,9.889]
[1772718833163,8.92338677,91.029,90.991,9.889]
[1772718834169,8.92338677,91.029,90.997,9.888]
[1772718837068,4.24198823,91.04,90.99,4.24198823]
[1772718837274,4.24198823,91.06,91.01,4.24198823]
[1772718837470,4.24198823,91.06,91.0,4.24198823]
[1772718837961,9.882,91.053,91.008,9.887]
[1772718838162,4.24198823,91.05,91.008,9.887]
[1772718838875,4.24198823,91.04,90.98,4.24198823]
[1772718839368,4.49952789,91.039,90.99,4.24198823]
[1772718840072,4.49952789,91.039,90.956,19.786]
[1772718840073,4.49952789,91.039,90.98,4.24198823]
[1772718840567,4.49952789,91.036,90.99,4.24198823]
[1772718840871,4.49952789,91.036,90.992,9.889]
[1772718842171,4.49952789,91.036,90.998,9.888]
[1772718843167,4.49952789,91.036,90.991,9.889]
[1772718845873,4.49952789,91.036,90.99,4.24661762]
[1772718846076,9.885,91.034,90.99,4.24661762]
[1772718846277,4.49952789,91.036,90.99,4.24661762]
[1772718847181,4.49952789,91.036,91.0,4.24661762]
[1772718847578,4.49952789,91.036,90.997,9.888]
[1772718848476,4.49952789,91.036,90.99,14.13561762]
[1772718848883,4.46699323,91.035,90.99,4.24661762]
[1772718850984,4.4670479,91.033,90.983,9.89]
[1772718851988,4.4670479,91.033,90.943,27.0832253]
[1772718851989,4.4670479,91.029,90.97,4.24661762]
[1772718852188,4.4670479,91.029,90.937,19.79]
[1772718852387,4.4670479,91.029,90.97,4.24661762]
[1772718852588,4.4670479,91.018,90.97,4.24661762]
[1772718852886,19.18634393,91.06,91.0,4.24661762]
[1772718852887,4.45893065,91.051,91.0,4.24661762]
[1772718853189,4.45893065,91.049,90.99,4.24661762]
[1772718853691,4.45893065,91.04,90.99,4.24661762]
[1772718857690,4.45893065,91.04,90.991,9.889]
[1772718861094,4.45893065,91.04,90.982,9.89]
[1772718861095,4.43370655,91.039,90.982,9.89]
[1772718862391,4.43370655,91.036,90.988,9.889]
[1772718862899,9.884,91.034,90.98,14.13661762]
[1772718863196,4.43330074,91.033,90.98,14.13661762]
[1772718864399,4.43330074,91.031,90.98,14.13661762]
[1772718866602,4.43933645,91.029,90.98,14.13661762]
[1772718867497,4.44016931,91.026,90.98,14.13661762]
[1772718869796,13.52749396,91.081,90.92,33.24259822]
[1772718869797,4.44509729,91.049,90.99,4.24661762]
[1772718871499,4.44054907,91.045,90.99,4.24661762]
[1772718872499,4.44054907,91.019,90.949,434.18992565]
[1772718873003,4.44054907,91.019,90.96,4.24661762]
[1772718873399,4.44054907,91.019,90.949,434.18992565]
[1772718873604,4.44054907,91.019,90.97,4.24661762]
[1772718877206,4.44054907,91.019,90.972,9.891]
[1772718877401,9.10622762,91.055,90.97,4.24661762]
[1772718877402,4.24661762,91.03,90.97,4.24661762]
[1772718877606,4.41470249,91.029,90.97,4.24661762]
[1772718877808,4.41470249,91.019,90.97,4.24661762]
[1772718878806,4.24661762,91.01,90.963,9.892]
[1772718879103,4.24661762,91.0,90.95,4.24661762]
[1772718879506,8.67093211,91.0,90.95,4.24661762]
[1772718879804,4.42431449,90.989,90.94,4.24661762]
[1772718880007,4.24661762,91.0,90.94,4.24661762]
[1772718880206,4.24661762,91.0,90.95,4.24661762]
[1772718881107,4.43306281,90.999,90.95,4.24661762]
[1772718881304,4.43306281,90.999,90.897,423.44727875]
[1772718881305,4.43306281,90.999,90.94,4.24661762]
[1772718882510,4.43306281,90.999,90.946,9.894]
[1772718884905,4.43306281,90.999,90.954,9.893]
[1772718885713,4.43306281,90.999,90.95,4.24661762]
[1772718886015,8.68141786,90.99,90.947,9.894]
[1772718886613,4.43480024,90.989,90.94,4.24661762]
[1772718887511,19.77,91.034,90.949,9.894]
[1772718887512,4.24661762,91.0,90.949,9.894]
[1772718889214,4.24661762,91.0,90.956,9.893]
[1772718889614,4.49653032,90.999,90.95,4.24661762]
[1772718889819,4.49653032,90.998,90.948,9.894]
[1772718890023,4.49651411,90.989,90.93,4.24661762]
[1772718890220,4.49651411,90.979,90.93,4.24661762]
[1772718891220,4.49651411,90.979,90.92,4.24661762]
[1772718891518,4.49651411,90.979,90.933,9.895]
[1772718892112,4.49651411,90.979,90.94,9.895]
[1772718892512,8.71431227,90.99,90.93,4.24661762]
[1772718892817,4.46769465,90.989,90.93,4.24661762]
[1772718893013,4.46449344,90.979,90.94,9.895]
[1772718894317,4.46449344,91.008,90.92,4.24661762]
[1772718894516,4.24661762,90.97,90.92,4.24661762]
[1772718894721,4.24661762,90.98,90.92,4.24661762]
[1772718895421,8.73117706,90.98,90.92,4.24661762]
[1772718895612,8.73117706,90.98,90.89,1.91018822]
[1772718895613,8.73117706,90.98,90.935,9.895]
[1772718895813,8.73117706,90.98,90.93,4.24661762]
[1772718895814,4.48455944,90.98,90.93,4.24661762]
[1772718897520,4.48455944,90.98,90.942,9.894]
[1772718898923,8.73117706,90.98,90.933,9.895]
[1772718899318,4.51747487,90.979,90.93,4.24661762]
[1772718899521,4.51747487,90.969,90.926,9.896]
[1772718899719,4.51747487,90.969,90.91,4.24661762]
[1772718899919,9.04309957,91.026,90.89,1.91018822]
[1772718899920,19.1826023,91.025,90.89,1.91018822]
[1772718900122,4.51747487,90.979,90.93,4.24661762]
[1772718900323,4.51747487,90.979,90.92,4.24661762]
[1772718900522,4.51747487,90.959,90.916,9.897]
[1772718900719,4.51747487,90.939,90.88,4.24661762]
[1772718901527,8.74994612,90.95,90.89,4.24661762]
[1772718901828,4.24661762,90.94,90.854,1.91414404]
[1772718902030,4.24661762,90.94,90.89,4.24661762]
[1772718902328,4.24661762,90.94,90.892,9.9]
[1772718903017,4.24661762,90.93,90.884,9.901]
[1772718904628,4.25703883,90.93,90.884,9.901]
[1772718904929,4.25703883,90.93,90.88,4.25703883]
[1772718905626,8.71694585,90.92,90.87,4.25703883]
[1772718905828,8.71694585,90.92,90.86,4.25703883]
[1772718906126,19.783,90.972,90.86,4.25703883]
[1772718906127,4.25703883,90.91,90.86,4.25703883]
[1772718906324,4.25703883,90.9,90.838,424.11100823]
[1772718906526,8.28515794,90.971,90.838,424.11100823]
[1772718906527,8.71694585,90.89,90.838,424.11100823]
[1772718906728,4.45990702,90.889,90.838,424.11100823]
[1772718906929,4.45874068,90.879,90.838,9.906]
[1772718907330,4.45874068,90.879,90.821,670.25672868]
[1772718907729,4.25703883,90.88,90.821,670.25672868]
[1772718907730,4.25703883,90.89,90.84,4.25703883]
[1772718907921,4.45874068,90.897,90.84,4.25703883]
[1772718908124,4.45874068,90.897,90.85,4.25703883]
[1772718909429,4.45874068,90.897,90.85,14.16103883]
[1772718910535,4.45874068,90.897,90.85,4.25703883]
[1772718912025,4.45874068,90.897,90.86,4.25703883]
[1772718912829,4.45874068,90.897,90.861,9.903]
[1772718919530,4.52640175,90.909,90.868,9.902]
[1772718920641,4.52607335,90.899,90.84,4.25703883]
[1772718921141,4.52607335,90.899,90.821,670.25672868]
[1772718921142,4.52607335,90.899,90.85,4.25703883]
[1772718921339,4.25703883,90.91,90.86,4.25703883]
[1772718921542,4.52655425,90.909,90.86,4.25703883]
[1772718922541,4.52655425,90.909,90.871,9.902]
[1772718926552,4.52312965,90.924,90.88,4.25703883]
[1772718926849,588.46300121,90.944,90.89,4.25703883]
[1772718927050,4.52334061,90.952,90.91,4.25703883]
[1772718927650,4.52334061,90.952,90.914,9.897]
[1772718928451,4.52334061,90.952,90.91,4.25703883]
[1772718928452,4.52334061,90.952,90.921,9.897]
[1772718929253,4.53688443,90.967,90.931,9.896]
[1772718935059,4.53688443,90.967,90.92,14.15403883]
[1772718936359,4.53688443,90.967,90.93,4.25703883]
[1772718936760,9.891,90.978,90.93,4.25703883]
[1772718936958,4.56239252,90.977,90.93,4.25703883]
[1772718937561,4.56239252,90.969,90.92,4.25703883]
[1772718938058,4.56239252,90.968,90.912,9.898]
[1772718938262,4.56239252,90.959,90.9,4.25703883]
[1772718938662,4.56239252,90.949,90.89,4.25703883]
[1772718940063,4.57220403,90.946,90.89,4.25703883]
[1772718940465,4.57220403,90.946,90.898,9.899]
[1772718940663,4.57220403,90.946,90.9,4.25703883]
[1772718943363,4.57220403,90.946,90.901,9.899]
[1772718946057,4.57220403,90.946,90.894,9.9]
[1772718946564,4.56799267,90.939,90.88,4.25703883]
[1772718947354,4.56799267,90.939,90.887,9.9]
[1772718948060,4.56799267,90.939,90.88,4.25703883]
[1772718949155,4.56799267,90.939,90.89,4.25703883]
[1772718949963,4.54083729,90.937,90.89,4.25703883]
[1772718951464,4.54083729,90.937,90.891,9.9]
[1772718952367,4.54083729,90.937,90.89,4.25703883]
[1772718953866,4.54083729,90.937,90.884,9.901]
[1772718954175,4.55136653,90.929,90.877,9.901]
[1772718955863,4.54992017,90.928,90.877,9.901]
[1772718956866,4.586715,90.926,90.877,9.901]
[1772718957565,4.586715,90.926,90.835,19.813]
[1772718957566,4.25703883,90.92,90.835,19.813]
[1772718957766,4.586715,90.919,90.86,4.25703883]
[1772718957965,4.586715,90.919,90.87,4.25703883]
[1772718958166,4.586715,90.919,90.876,9.902]
[1772718961770,4.25703883,90.93,90.882,9.901]
[1772718962168,4.25703883,90.93,90.88,4.25703883]
[1772718962866,8.8356486,90.93,90.88,4.25703883]
[1772718963273,4.25703883,90.92,90.87,4.25703883]
[1772718964168,4.25703883,90.92,90.881,9.901]
[1772718964372,4.57860977,90.942,90.833,154.105]
[1772718964568,4.57860977,90.942,90.89,4.25703883]
[1772718965672,4.57860977,90.942,90.898,9.899]
[1772718966472,4.25587908,90.94,90.898,9.899]
[1772718967274,4.57860977,90.942,90.898,9.899]
[1772718967868,4.25587908,90.94,90.898,9.899]
[1772718968073,4.54033384,90.939,90.898,9.899]
[1772718968272,4.54033384,90.939,90.89,4.25587908]
[1772718968774,4.54033384,90.939,90.897,9.899]
[1772718969879,4.25587908,90.94,90.904,9.899]
[1772718970075,4.25587908,90.95,90.904,9.899]
[1772718970568,4.50964389,90.955,90.91,9.898]
[1772718971574,4.25587908,90.95,90.903,9.899]
[1772718971779,14.40264389,90.955,90.903,9.899]
[1772718971780,4.25587908,90.94,90.903,9.899]
[1772718971973,4.25587908,90.93,90.845,27.12667524]
[1772718972170,4.25587908,90.93,90.87,4.25587908]
[1772718972171,4.53150547,90.929,90.87,4.25587908]
[1772718972374,4.53150547,90.929,90.882,9.901]
[1772718972571,4.25587908,90.92,90.882,9.901]
[1772718974380,4.53150547,90.929,90.882,9.901]
[1772718974773,8.77936791,90.92,90.875,9.902]
[1772718976579,8.77936791,90.92,90.87,4.25587908]
[1772718976580,8.77936791,90.92,90.882,9.901]
[1772718976976,4.52348883,90.92,90.882,9.901]
[1772718977191,4.25587908,90.93,90.882,9.901]
[1772718977391,8.73575097,90.93,90.882,9.901]
[1772718978786,4.47879925,90.929,90.882,9.901]
[1772718979978,4.47879925,90.929,90.888,9.9]
[1772718980792,4.47879925,90.929,90.879,9.901]
[1772718980992,4.25587908,90.92,90.879,9.901]
[1772718981186,4.25587908,90.91,90.86,4.25587908]
[1772718981387,4.51830898,90.909,90.867,9.903]
[1772718982390,4.51830898,90.909,90.873,9.902]
[1772718983089,4.51830898,90.909,90.863,9.903]
[1772718983590,4.51830898,90.909,90.869,9.902]
[1772718987693,4.51830898,90.909,90.829,19.814]
[1772718988001,4.51830898,90.909,90.85,4.25587908]
[1772718989593,4.51830898,90.909,90.865,9.903]
[1772718989798,4.49840192,90.889,90.83,4.25587908]
[1772718989997,4.49840192,90.889,90.846,9.905]
[1772718990197,4.49840192,90.889,90.84,4.25587908]
[1772718990596,8.47806324,90.934,90.841,3.4888674]
[1772718990802,20.22940793,90.965,90.821,670.25672868]
[1772718990803,4.25587908,90.9,90.851,3.4888674]
[1772718990996,4.25587908,90.89,90.841,3.51627228]
[1772718991305,4.25587908,90.88,90.843,3.51627228]
[1772718991597,4.25587908,90.89,90.843,3.51627228]
[1772718992703,3.67402507,90.889,90.843,3.51627228]
[1772718993503,3.67402507,90.879,90.843,3.51627228]
[1772718994804,9.9,90.895,90.821,670.25672868]
[1772718994805,3.67402507,90.909,90.851,3.67300111]
[1772718995007,3.67402507,90.909,90.861,3.67300111]
[1772718996203,3.67402507,90.909,90.871,3.67300111]
[1772718997913,3.67402507,90.909,90.861,3.66175389]
[1772718998305,3.67402507,90.909,90.864,9.903]
[1772718999411,3.67402507,90.909,90.865,3.65868205]
[1772718999600,3.67402507,90.909,90.87,4.25587908]
[1772719000612,3.67402507,90.909,90.865,3.65868205]
[1772719001003,3.67402507,90.909,90.867,3.64752917]
[1772719001203,9.897,90.915,90.826,19.814]
[1772719001204,3.67402507,90.922,90.871,3.64752917]
[1772719001610,3.67402507,90.922,90.873,3.64752917]
[1772719001810,3.67402507,90.922,90.872,9.902]
[1772719001811,3.67402507,90.922,90.881,3.64752917]
[1772719003911,9.896,90.925,90.881,3.64752917]
[1772719004213,3.67402507,90.935,90.891,3.64316315]
[1772719005615,3.67402507,90.935,90.892,3.63103172]
[1772719006815,3.67402507,90.929,90.885,9.901]
[1772719007313,3.67402507,90.919,90.87,4.25587908]
[1772719007620,3.67402507,90.919,90.871,3.63832827]
[1772719008511,3.67402507,90.919,90.88,4.25587908]
[1772719009106,3.88983043,90.934,90.89,7.87684276]
[1772719009313,3.88983043,90.934,90.891,3.62096368]